fUSD/lending_fUSD_20240827
["ID","MTS","AMOUNT","RATE_DAILY","PERIOD"]
[336325506,1724777137886,-5000.0,9.914e-05,2]
[336325507,1724777150186,154.4,7.058e-05,2]
[336325508,1724777161713,300.0,9.913e-05,2]
[336325509,1724777168086,250.0,9.826e-05,2]
[336325510,1724777168381,173.85,9.826e-05,2]
[336325511,1724777171717,266.86,8.219e-05,2]
[336325512,1724777185374,54.89,9.767e-05,2]
[336325513,1724777185395,1895.11,9.767e-05,2]
[336325514,1724777254034,197.55616604,9.899e-05,2]
[336325515,1724777264637,2861.98,9.8e-05,2]
[336325516,1724777301514,3693.5458282,9.815e-05,2]
[336325517,1724777301534,10000.0,9.815e-05,2]
[336325518,1724777301554,10000.0,9.815e-05,2]
[336325519,1724777301574,206.4541718,9.815e-05,2]
[336325529,1724777316787,205.29,9.836e-05,2]
[336325530,1724777323296,485.49230641,9.899e-05,2]
[336325534,1724777350711,287.27369287,9.899e-05,2]
[336325539,1724777362476,1113.38,9.852e-05,2]
[336325602,1724777398371,-275.24648864,9.91e-05,2]
[336325603,1724777398395,-217.93,9.93e-05,2]
[336325604,1724777398416,-150.0,9.945e-05,2]
[336325605,1724777398436,-6601.04681559,9.962e-05,2]
[336325606,1724777398457,-1000.0,9.971e-05,2]
[336325607,1724777398477,-1050.0,9.972e-05,2]
[336325608,1724777398496,-170.72455842,0.0001,2]
[336325609,1724777398516,-162.94007639,0.0001,2]
[336325610,1724777398536,-299.56059646,0.0001,2]
[336325611,1724777398560,-72.5514645,0.0001,2]
[336325629,1724777432269,-341.0199991,0.0001,2]
[336325630,1724777432279,-215.09582273,0.0001,2]
[336325631,1724777432288,-648.88417817,0.0001,2]
[336326131,1724777438285,-874.45788235,0.0001,2]
[336326133,1724777438295,-1050.0,0.0001,2]
[336326135,1724777438305,-142.1257266,0.00010202,2]
[336326139,1724777438342,-1015.44869551,0.00010202,2]
[336326182,1724777438770,-971.53381298,0.00010202,2]
[336326333,1724777440287,-565.3,0.00010202,2]
[336326392,1724777440872,-24.4,0.00010202,2]
[336326400,1724777440937,-3092.75,0.00010202,2]
[336326403,1724777440954,-67.44176491,0.00010202,2]
[336326405,1724777440963,-266.86,0.00010466,2]
[336326406,1724777440972,-888.25255403,0.00010566,2]
[336326408,1724777440981,-150.0,0.00010739,2]
[336326410,1724777440991,-4290.47624713,0.0001074,2]
[336326412,1724777441004,-12133.3689,0.0001075,2]
[336326414,1724777441013,-11027.84564349,0.0001075,2]
[336326416,1724777441024,-3052.09045651,0.0001075,2]
[336326418,1724777441034,-972.6795,0.0001075,2]
[336326420,1724777441044,-390.2131,0.0001075,2]
[336326422,1724777441053,-2500.0,0.0001075,2]
[336326424,1724777441062,-2767.2662,0.0001075,2]
[336326426,1724777441071,-914.15164555,0.00010752,2]
[336326428,1724777441082,-357.89033684,0.00010752,2]
[336326430,1724777441092,-164.46104347,0.00010758,2]
[336326432,1724777441102,-5662.9713,0.00010799,2]
[336326434,1724777441111,-2212.81480299,0.00010799,2]
[336326436,1724777441120,-914.15164553,0.00010826,2]
[336326438,1724777441130,-150.8,0.0001084,2]
[336326440,1724777441139,-150.8,0.0001084,2]
[336326441,1724777441149,-150.8,0.0001084,2]
[336326442,1724777441158,-150.8,0.0001084,2]
[336326443,1724777441167,-150.8,0.0001084,2]
[336326444,1724777441176,-150.8,0.0001084,2]
[336326445,1724777441185,-150.8,0.0001084,2]
[336326446,1724777441196,-150.8,0.0001084,2]
[336326447,1724777441205,-150.8,0.0001084,2]
[336326448,1724777441214,-150.8,0.0001084,2]
[336326449,1724777441223,-150.8,0.0001084,2]
[336326450,1724777441233,-150.8,0.0001084,2]
[336326451,1724777441242,-150.8,0.0001084,2]
[336326452,1724777441251,-150.8,0.0001084,2]
[336326453,1724777441260,-150.8,0.0001084,2]
[336326454,1724777441269,-150.8,0.0001084,2]
[336326455,1724777441278,-150.8,0.0001084,2]
[336326456,1724777441287,-150.8,0.0001084,2]
[336326457,1724777441296,-150.8,0.0001084,2]
[336326458,1724777441305,-150.8,0.0001084,2]
[336326459,1724777441314,-150.8,0.0001084,2]
[336326460,1724777441323,-150.8,0.0001084,2]
[336326461,1724777441333,-150.8,0.0001084,2]
[336326462,1724777441345,-150.8,0.0001084,2]
[336326463,1724777441354,-7399.81622027,0.0001085,2]
[336326464,1724777441366,-3480.21316393,0.0001085,2]
[336326542,1724777443311,-342.15212558,0.0001085,2]
[336326544,1724777443321,-304.4341043,0.0001085,2]
[336326548,1724777443355,-1118.97,0.0001085,2]
[336326838,1724777446189,-636.28681071,0.0001075,2]
[336326847,1724777446248,-433.45068929,0.0001075,2]
[336326849,1724777446257,-6572.54633455,0.0001085,2]
[336326861,1724777446356,-260.0,0.0001085,2]
[336326865,1724777446387,-229.60666675,0.0001085,2]
[336326869,1724777446414,-1855.91237989,0.0001085,2]
[336326872,1724777446425,-33949.49912726,0.0001085,2]
[336327991,1724777644828,500.0,9.899e-05,2]
[336327992,1724777645458,500.0,9.899e-05,2]
[336327993,1724777645795,500.0,9.899e-05,2]
[336327994,1724777646457,500.0,9.899e-05,2]
[336327995,1724777646798,500.0,9.899e-05,2]
[336327996,1724777658740,153.9,7.143e-05,2]
[336327997,1724777672597,280.48,8.219e-05,2]
[336327998,1724777680169,1270.6718837,7.143e-05,2]
[336327999,1724777680676,200.0,9.869e-05,2]
[336328000,1724777683749,3297.05794522,7.143e-05,2]
[336328001,1724777683770,5558.52255959,7.143e-05,2]
[336328002,1724777685442,434.60721071,7.143e-05,2]
[336328003,1724777686756,305.0,7.143e-05,2]
[336328004,1724777688019,694.1704637,7.143e-05,2]
[336328005,1724777688264,532.35855902,7.143e-05,2]
[336328006,1724777697659,250.0,9.869e-05,2]
[336328007,1724777698666,172.87,9.873e-05,2]
[336328008,1724777699318,2052.47120698,7.143e-05,2]
[336328009,1724777699340,1022.74449495,7.143e-05,2]
[336328010,1724777712109,8977.25550505,7.143e-05,2]
[336328011,1724777712131,7278.65557554,7.143e-05,2]
[336328012,1724777722134,349.59375782,8.658e-05,2]
[336328013,1724777728080,585.8,9.837e-05,2]
[336328014,1724777729152,199.18196017,8.658e-05,2]
[336328015,1724777731121,539.92761692,8.658e-05,2]
[336328016,1724777731242,644.99793751,8.658e-05,2]
[336328017,1724777734224,401.84315204,8.658e-05,2]
[336328018,1724777734245,2103.9823762,8.658e-05,2]
[336328019,1724777742111,7896.0176238,7.143e-05,2]
[336328020,1724777742132,8359.89345679,7.143e-05,2]
[336328021,1724777775011,694.1704637,8.658e-05,2]
[336328022,1724777802360,945.93607951,8.658e-05,2]
[336328023,1724777802390,2129.27962242,8.658e-05,2]
[336328024,1724777803952,1185.08817196,8.658e-05,2]
[336328025,1724777822140,6685.63220562,8.658e-05,2]
[336328026,1724777822162,6577.10436081,8.658e-05,2]
[336328027,1724777835519,3422.89563919,9.758e-05,2]
[336328028,1724777835733,6139.26436081,9.758e-05,2]
[336328029,1724777862515,694.1704637,8.658e-05,2]
[336328030,1724777876662,1148.36,9.741e-05,2]
[336328031,1724777895336,2875.33160439,8.658e-05,2]
[336328032,1724777915978,-268.36,9.914e-05,2]
[336328036,1724777957540,565.632,9.878e-05,2]
[336328037,1724777960137,500.0,7.143e-05,2]
[336328038,1724777976508,692.0815822,9.914e-05,2]
[336328039,1724777982880,188.31,7.801e-05,2]
[336328040,1724778001853,-589.0,9.928e-05,2]
[336328041,1724778001876,-1445.19972517,9.929e-05,2]
[336328042,1724778001899,-186.25460476,9.929e-05,2]
[336328043,1724778001921,-1000.0,9.929e-05,2]
[336328044,1724778001941,-500.0,9.972e-05,2]
[336328045,1724778001962,-155.0,9.999e-05,2]
[336328046,1724778001983,-1074.88726643,9.999e-05,2]
[336328047,1724778002004,-2100.30458129,9.999e-05,2]
[336328048,1724778002026,-1975.9,0.00010002,2]
[336328049,1724778002047,-316.20655906,0.00010009,2]
[336328050,1724778002069,-644.69408463,0.00010009,2]
[336328051,1724778002090,-166.39780491,0.00010009,2]
[336328052,1724778002110,-1741.83959805,0.00010009,2]
[336328053,1724778002130,-2837.0,0.00010009,2]
[336328054,1724778002151,-3052.9321935,0.00010026,2]
[336328055,1724778002888,150.0,7.801e-05,2]
[336328056,1724778003118,150.0,7.801e-05,2]
[336328057,1724778003341,150.0,7.801e-05,2]
[336328058,1724778003568,150.0,7.801e-05,2]
[336328059,1724778003792,150.0,7.801e-05,2]
[336328060,1724778003977,150.0,7.801e-05,2]
[336328061,1724778004194,150.0,7.801e-05,2]
[336328062,1724778004421,150.0,7.801e-05,2]
[336328063,1724778004631,150.0,7.801e-05,2]
[336328064,1724778004815,150.0,7.801e-05,2]
[336328065,1724778005025,150.0,7.801e-05,2]
[336328066,1724778005332,202.39268906,7.801e-05,2]
[336328067,1724778022218,-201.0,9.925e-05,2]
[336328068,1724778025500,155.94092204,9.456e-05,2]
[336328069,1724778042194,192.18,9.788e-05,2]
[336328070,1724778061609,297.05851896,9.456e-05,2]
[336328071,1724778089833,1246.79111031,9.456e-05,2]
[336328072,1724778090017,-351.1151,9.925e-05,2]
[336328073,1724778090039,-155.0,9.943e-05,2]
[336328074,1724778090061,-155.25933113,9.988e-05,2]
[336328075,1724778090086,-2111.83717658,0.0001,2]
[336328076,1724778090107,-4501.78839229,0.0001,2]
[336328077,1724778096037,200.0,9.818e-05,2]
[336328078,1724778114525,10000.0,9.826e-05,2]
[336328079,1724778177690,200.0,9.81e-05,2]
[336328080,1724778203758,172.31,9.799e-05,2]
[336328081,1724778207552,153.44,7.057e-05,2]
[336328082,1724778225874,-304.02597865,9.988e-05,2]
[336328083,1724778225896,-159.84709135,9.988e-05,2]
[336328084,1724778225917,-300.0,9.999e-05,2]
[336328085,1724778225941,-330.61316024,9.999e-05,2]
[336328086,1724778225962,-300.46104291,0.0001,2]
[336328087,1724778225982,-8605.05272685,0.0001,2]
[336328088,1724778227703,439.91,9.838e-05,2]
[336328089,1724778234730,299.31,8.219e-05,2]
[336328090,1724778260076,228.68,9.805e-05,2]
[336328091,1724778260279,228.68,9.808e-05,2]
[336328092,1724778260493,228.68,9.81e-05,2]
[336328093,1724778260752,228.68,9.813e-05,2]
[336328094,1724778260997,228.68,9.816e-05,2]
[336328095,1724778261230,228.68,9.818e-05,2]
[336328096,1724778261427,228.68,9.821e-05,2]
[336328097,1724778261853,228.68,9.823e-05,2]
[336328098,1724778261893,228.68,9.826e-05,2]
[336328099,1724778262339,228.68,9.828e-05,2]
[336328100,1724778262590,228.68,9.831e-05,2]
[336328101,1724778262868,228.68,9.834e-05,2]
[336328102,1724778263077,228.68,9.836e-05,2]
[336328103,1724778263353,228.68,9.839e-05,2]
[336328104,1724778263576,228.68,9.841e-05,2]
[336328105,1724778263798,228.68,9.844e-05,2]
[336328106,1724778264069,228.68,9.846e-05,2]
[336328107,1724778264316,228.68,9.849e-05,2]
[336328108,1724778264539,228.68,9.852e-05,2]
[336328109,1724778264808,228.68,9.854e-05,2]
[336328110,1724778281944,330.61316024,8.554e-05,2]
[336328111,1724778337219,1391.23,9.814e-05,2]
[336328112,1724778345391,-199.30628516,9.988e-05,2]
[336328113,1724778345416,-1394.94727315,0.0001,2]
[336328114,1724778345441,-1560.20745835,0.0001,2]
[336328115,1724778345466,-2389.43851167,0.00010009,2]
[336328116,1724778345488,-266.02335463,0.00010009,2]
[336328117,1724778345512,-724.14915892,0.00010026,2]
[336328118,1724778345534,-444.21332815,0.00010097,2]
[336328119,1724778345557,-999.99,0.00010416,2]
[336328120,1724778345580,-299.31,0.00010467,2]
[336328121,1724778345602,-342.47692814,0.00010505,2]
[336328122,1724778345624,-307.21169318,0.00010505,2]
[336328123,1724778345646,-150.0,0.00010549,2]
[336328124,1724778345668,-1390.4031,0.0001055,2]
[336328125,1724778345690,-1000.0,0.0001055,2]
[336328126,1724778345711,-268.2755,0.0001055,2]
[336328127,1724778345733,-8116.0801,0.0001055,2]
[336328128,1724778345754,-499.99,0.00010566,2]
[336328129,1724778345781,-5348.55,0.00010566,2]
[336328130,1724778345806,-1624.69190865,0.0001065,2]
[336328131,1724778346428,-2726.0,0.0001065,2]
[336328132,1724778350653,-30000.0,0.0001065,2]
[336328133,1724778351338,-30000.0,0.0001065,2]
[336328571,1724778402572,626.97517549,9.902e-05,2]
[336328572,1724778402594,8667.0,9.902e-05,2]
[336328573,1724778402620,4606.02482451,9.902e-05,2]
[336328615,1724778431997,-303.90469939,0.00010097,2]
[336328617,1724778432021,-950.23158509,0.00010097,2]
[336328619,1724778432044,-1192.55775368,0.00010097,2]
[336328621,1724778432067,-2505.40041835,0.00010097,2]
[336328623,1724778432090,-528.91996067,0.00010097,2]
[336328625,1724778432119,-419.57836223,0.00010097,2]
[336328626,1724778432142,-2158.00045484,0.00010368,2]
[336328627,1724778432164,-433.94021234,0.00010368,2]
[336328628,1724778432186,-470.90780405,0.00010368,2]
[336328629,1724778432209,-439.82643007,0.00010505,2]
[336328630,1724778432231,-1000.0,0.0001055,2]
[336328631,1724778432257,-260.2971,0.0001055,2]
[336328632,1724778432279,-200.34942875,0.00010597,2]
[336328633,1724778432302,-150.0,0.00010649,2]
[336328635,1724778432326,-500.0,0.0001065,2]
[336328638,1724778432351,-299.56059646,0.0001065,2]
[336328640,1724778432374,-26627.52519408,0.0001065,2]
[336328827,1724778437327,-155.0,0.00010097,2]
[336328829,1724778437361,-170.72455842,0.0001065,2]
[336328831,1724778437383,-162.91105295,0.0001065,2]
[336328833,1724778437406,-29511.36438863,0.0001065,2]
[336330071,1724778473310,850.2,9.87e-05,2]
[336330479,1724778591688,840.0,9.767e-05,2]
[336330483,1724778614979,205.06,9.764e-05,2]
[336330498,1724778631391,-6900.37173994,9.987e-05,2]
[336330499,1724778631403,-7552.79375226,9.987e-05,2]
[336330500,1724778631812,-10.83723214,9.987e-05,2]
[336330501,1724778631823,-2077.55100679,9.987e-05,2]
[336330502,1724778631834,-355.41834579,9.987e-05,2]
[336330503,1724778631845,-388.1463365,9.987e-05,2]
[336330504,1724778631856,-1135.00158658,9.987e-05,2]
[336330505,1724778631866,-1100.0,0.0001,3]
[336330506,1724778631875,-2200.0,0.000101,3]
[336330507,1724778631884,-3400.0,0.000102,3]
[336330508,1724778631893,-4500.0,0.000103,3]
[336330509,1724778631902,-10000.0,0.0001033,2]
[336330510,1724778631913,-5600.0,0.000104,3]
[336330511,1724778631922,-5612.85348047,0.00010471,2]
[336330512,1724778631932,-1100.0,0.000105,3]
[336330513,1724778631941,-2500.0,0.0001055,2]
[336330514,1724778631952,-223.4524,0.0001055,2]
[336330515,1724778631961,-1000.0,0.0001055,2]
[336330516,1724778631969,-499.99,0.0001055,2]
[336330517,1724778631980,-815.84,0.0001055,2]
[336330518,1724778631998,-299.99,0.0001055,2]
[336330519,1724778632007,-528.84,0.00010566,2]
[336330520,1724778632016,-180.57,0.00010566,2]
[336330521,1724778632025,-150.0,0.00010599,2]
[336330522,1724778632034,-1100.0,0.000106,3]
[336330523,1724778632043,-1051.77846021,0.0001065,2]
[336330524,1724778632054,-413.5714636,0.0001065,2]
[336330525,1724778632064,-30160.87355129,0.0001065,2]
[336330526,1724778632111,-125664.84087542,0.0001065,2]
[336330527,1724778632184,-1765.30034146,0.0001065,2]
[336330528,1724778632199,-1127.61331614,0.0001065,2]
[336330555,1724778635462,3014.0292,9.887e-05,2]
[336330561,1724778637488,-421.78588728,0.0001065,2]
[336330562,1724778637541,-4552.71630607,0.0001065,2]
[336330563,1724778637598,-2364.01451426,0.0001065,2]
[336330564,1724778637610,-724.97184001,0.0001065,2]
[336330565,1724778637657,-870.40554389,0.0001065,2]
[336330566,1724778637668,-4606.96890776,0.0001065,2]
[336330567,1724778637679,-1037.55277893,0.0001065,2]
[336330568,1724778637719,-17956.08224966,0.0001065,2]
[336330569,1724778637731,-2709.48663959,0.0001065,2]
[336330570,1724778637777,-756.50129239,0.0001065,2]
[336330571,1724778637788,-1393.41253977,0.0001065,2]
[336330572,1724778637799,-425.4,0.0001065,2]
[336330573,1724778637810,-1559.04212574,0.0001065,2]
[336330574,1724778637823,-27316.47778518,0.0001065,2]
[336330575,1724778637832,-1100.0,0.000107,3]
[336330576,1724778637842,-3143.70047368,0.0001075,2]
[336330577,1724778637852,-363.63043633,0.0001075,2]
[336330579,1724778637861,-149.87036818,0.0001075,2]
[336330580,1724778637872,-2089.96063182,0.0001075,2]
[336330581,1724778637881,-589.589,0.0001075,2]
[336330582,1724778637890,-6626.7032,0.0001075,2]
[336330583,1724778637899,-447.0,0.00010783,2]
[336330584,1724778637909,-150.0,0.00010794,2]
[336330585,1724778637918,-1226.67836818,0.000108,2]
[336330586,1724778637930,-605.32397182,0.000108,2]
[336330587,1724778637939,-1100.0,0.000108,3]
[336330588,1724778637948,-155.94399844,0.000108,2]
[336330589,1724778637958,-363.63043632,0.00010825,2]
[336330590,1724778637967,-378.20803017,0.0001084,2]
[336330591,1724778637987,-571.53689557,0.0001084,2]
[336330592,1724778637998,-435.47129119,0.0001084,2]
[336330595,1724778639480,-5690.40378307,0.0001084,2]
[336330596,1724778639492,-150.8,0.0001084,2]
[336330597,1724778639502,-150.8,0.0001084,2]
[336330598,1724778639511,-150.8,0.0001084,2]
[336330599,1724778639521,-150.8,0.0001084,2]
[336330600,1724778639531,-1205.0,0.00010846,2]
[336330601,1724778639540,-4160.41399359,0.00010847,2]
[336330602,1724778639550,-578.0,0.0001085,2]
[336330603,1724778639560,-6686073.07987747,0.0001085,2]
[336330604,1724778639570,-1832.00234,0.0001085,2]
[336330605,1724778639579,-1832.00235,0.0001085,2]
[336330606,1724778639589,-3880.48745223,0.00010852,2]
[336330607,1724778639598,-600.74422133,0.00010852,2]
[336330608,1724778639607,-516.81257679,0.00010852,2]
[336330609,1724778639617,-416.94380806,0.00010852,2]
[336330610,1724778639626,-150.669,0.00010861,2]
[336330611,1724778639635,-150.098,0.00010861,2]
[336330612,1724778639645,-365.80180037,0.00010861,2]
[336330613,1724778639655,-298.80085922,0.00010862,2]
[336330614,1724778639664,-287.17126109,0.00010862,2]
[336330615,1724778639674,-155.5925289,0.00010862,2]
[336330616,1724778639683,-500.0,0.00010873,2]
[336330617,1724778639693,-1832.00235,0.0001088,2]
[336330618,1724778639703,-260.39879964,0.00010888,2]
[336330619,1724778639712,-379.40277875,0.00010888,2]
[336330620,1724778639722,-155.0,0.00010888,2]
[336330621,1724778639731,-160.0,0.00010888,2]
[336330622,1724778639743,-151.0,0.0001089,2]
[336330623,1724778639753,-242.10439284,0.0001089,2]
[336330624,1724778639763,-1071.39214293,0.00010897,2]
[336330625,1724778639773,-10181.31933422,0.00010899,2]
[336330626,1724778639782,-10181.31933419,0.00010899,2]
[336330627,1724778639792,-10181.31933419,0.00010899,2]
[336330628,1724778639801,-10181.31933419,0.00010899,2]
[336330629,1724778639811,-10181.31933419,0.00010899,2]
[336330630,1724778639820,-10181.31933419,0.00010899,2]
[336330631,1724778639829,-10181.31933419,0.00010899,2]
[336330632,1724778639839,-10181.31933419,0.00010899,2]
[336330633,1724778639848,-10181.31933419,0.00010899,2]
[336330634,1724778639857,-229.9619592,0.00010899,2]
[336330635,1724778639867,-164.44192191,0.00010899,2]
[336330636,1724778639876,-374.52537807,0.00010899,2]
[336330637,1724778639886,-1016.3243,0.000109,2]
[336330638,1724778639895,-1000.0,0.000109,2]
[336330639,1724778639905,-160.69947786,0.000109,2]
[336330640,1724778639914,-160.6994778,0.000109,2]
[336330641,1724778639924,-160.6994778,0.000109,2]
[336330642,1724778639933,-160.6994778,0.000109,2]
[336330643,1724778639943,-160.6994778,0.000109,2]
[336330644,1724778639952,-160.6994778,0.000109,2]
[336330645,1724778639961,-160.6994778,0.000109,2]
[336330646,1724778639971,-160.6994778,0.000109,2]
[336330647,1724778639980,-10181.31933419,0.000109,2]
[336330648,1724778639991,-1550.0,0.000109,3]
[336330649,1724778640000,-150.0,0.000109,2]
[336330650,1724778640010,-250000.0,0.0001095,2]
[336330651,1724778640019,-265.23619005,0.00010958,2]
[336330652,1724778640028,-556.06335157,0.00010958,2]
[336330653,1724778640037,-500.0,0.00010958,2]
[336330654,1724778640047,-500.0,0.00010958,2]
[336330655,1724778640056,-500.0,0.00010958,2]
[336330656,1724778640065,-605.1141498,0.00010958,2]
[336330657,1724778640075,-501.28020786,0.00010958,2]
[336330658,1724778640084,-500.0,0.00010958,2]
[336330659,1724778640093,-500.0,0.00010958,2]
[336330660,1724778640103,-500.0,0.00010958,2]
[336330661,1724778640113,-500.0,0.00010958,2]
[336330662,1724778640122,-379.90872022,0.00010958,2]
[336330663,1724778640131,-500.0,0.00010958,2]
[336330664,1724778640141,-500.0,0.00010958,2]
[336330665,1724778640151,-500.0,0.00010958,2]
[336330666,1724778640160,-500.0,0.00010958,2]
[336330667,1724778640169,-500.0,0.00010958,2]
[336330668,1724778640179,-516.69292063,0.00010958,2]
[336330669,1724778640188,-500.0,0.00010958,2]
[336330670,1724778640198,-502.0451639,0.00010958,2]
[336330671,1724778640207,-151.0,0.00010958,2]
[336330672,1724778640217,-151.0,0.00010958,2]
[336330673,1724778640226,-151.0,0.00010958,2]
[336330674,1724778640237,-151.0,0.00010958,2]
[336330676,1724778640246,-151.0,0.00010958,2]
[336330678,1724778640255,-151.0,0.00010958,2]
[336330680,1724778640265,-151.0,0.00010958,2]
[336330681,1724778640274,-151.0,0.00010958,2]
[336330683,1724778640284,-500.0,0.00010958,2]
[336330685,1724778640293,-500.0,0.00010958,2]
[336330687,1724778640302,-500.0,0.00010958,2]
[336330689,1724778640312,-500.0,0.00010958,2]
[336330691,1724778640321,-500.0,0.00010958,2]
[336330693,1724778640331,-500.0,0.00010958,2]
[336330695,1724778640340,-500.0,0.00010958,2]
[336330697,1724778640349,-285.07257277,0.00010958,2]
[336330699,1724778640358,-186.67059458,0.00010958,2]
[336330701,1724778640368,-152.3795,0.00010958,2]
[336330703,1724778640377,-151.0,0.00010958,2]
[336330705,1724778640387,-151.219015,0.00010958,2]
[336330707,1724778640398,-151.0,0.00010958,2]
[336330709,1724778640408,-151.0,0.00010958,2]
[336330711,1724778640417,-151.0,0.00010958,2]
[336330713,1724778640427,-151.0,0.00010958,2]
[336330715,1724778640436,-151.0,0.00010958,2]
[336330717,1724778640445,-151.0,0.00010958,2]
[336330719,1724778640455,-213.644601,0.00010958,2]
[336330721,1724778640466,-151.0,0.00010958,2]
[336330723,1724778640476,-151.0,0.00010958,2]
[336330725,1724778640485,-151.0,0.00010958,2]
[336330727,1724778640494,-151.0,0.00010958,2]
[336330729,1724778640503,-151.0,0.00010958,2]
[336330731,1724778640512,-151.0,0.00010958,2]
[336330733,1724778640521,-151.0,0.00010958,2]
[336330735,1724778640531,-151.0,0.00010958,2]
[336330737,1724778640540,-151.0,0.00010958,2]
[336330739,1724778640549,-151.0,0.00010958,2]
[336330741,1724778640558,-151.0,0.00010958,2]
[336330743,1724778640567,-151.0,0.00010958,2]
[336330745,1724778640577,-500.0,0.00010958,2]
[336330747,1724778640586,-296.86,0.00010958,2]
[336330749,1724778640596,-500.0,0.00010958,2]
[336330751,1724778640606,-443.81758317,0.00010958,2]
[336330753,1724778640615,-500.0,0.00010958,2]
[336330755,1724778640624,-500.0,0.00010958,2]
[336330757,1724778640633,-500.0,0.00010958,2]
[336330759,1724778640642,-500.0,0.00010958,2]
[336330761,1724778640651,-500.0,0.00010958,2]
[336330763,1724778640660,-468.97,0.00010958,2]
[336330765,1724778640670,-552.18175519,0.00010958,2]
[336330767,1724778640679,-500.0,0.00010958,2]
[336330769,1724778640689,-396.28681071,0.00010958,2]
[336330771,1724778640698,-500.0,0.00010958,2]
[336330773,1724778640707,-500.0,0.00010958,2]
[336330775,1724778640717,-500.0,0.00010958,2]
[336330777,1724778640726,-354.93342994,0.00010958,2]
[336330779,1724778640735,-500.0,0.00010958,2]
[336330781,1724778640744,-500.0,0.00010958,2]
[336330783,1724778640753,-500.0,0.00010958,2]
[336330785,1724778640763,-500.0,0.00010958,2]
[336330787,1724778640772,-500.0,0.00010958,2]
[336330789,1724778640781,-500.0,0.00010958,2]
[336330791,1724778640792,-500.0,0.00010958,2]
[336330793,1724778640801,-500.0,0.00010958,2]
[336330795,1724778640810,-500.0,0.00010958,2]
[336330797,1724778640819,-177.73287731,0.00010958,2]
[336330799,1724778640828,-500.0,0.00010958,2]
[336330801,1724778640837,-500.0,0.00010958,2]
[336330803,1724778640846,-500.0,0.00010958,2]
[336330805,1724778640855,-500.0,0.00010958,2]
[336330807,1724778640864,-500.0,0.00010958,2]
[336330809,1724778640873,-500.0,0.00010958,2]
[336330811,1724778640882,-500.0,0.00010958,2]
[336330813,1724778640891,-500.0,0.00010958,2]
[336330815,1724778640900,-500.0,0.00010958,2]
[336330817,1724778640909,-500.0,0.00010958,2]
[336330819,1724778640918,-500.0,0.00010958,2]
[336330821,1724778640927,-500.0,0.00010958,2]
[336330823,1724778640936,-500.0,0.00010958,2]
[336330825,1724778640945,-168.78407693,0.00010958,2]
[336330828,1724778640955,-500.0,0.00010958,2]
[336330830,1724778640966,-500.0,0.00010958,2]
[336330832,1724778640975,-500.0,0.00010958,2]
[336330834,1724778640985,-500.0,0.00010958,2]
[336330836,1724778640994,-500.0,0.00010958,2]
[336330838,1724778641003,-500.0,0.00010958,2]
[336330840,1724778641012,-500.0,0.00010958,2]
[336330842,1724778641021,-500.0,0.00010958,2]
[336330844,1724778641030,-252.4760179,0.00010958,2]
[336330846,1724778641039,-500.0,0.00010958,2]
[336330848,1724778641049,-629.98696938,0.00010958,2]
[336330850,1724778641058,-500.0,0.00010958,2]
[336330852,1724778641067,-500.0,0.00010958,2]
[336330854,1724778641077,-500.0,0.00010958,2]
[336330856,1724778641086,-500.0,0.00010958,2]
[336330858,1724778641095,-500.0,0.00010958,2]
[336330859,1724778641104,-500.0,0.00010958,2]
[336330860,1724778641113,-500.0,0.00010958,2]
[336330861,1724778641122,-500.0,0.00010958,2]
[336330862,1724778641131,-500.0,0.00010958,2]
[336330863,1724778641140,-500.0,0.00010958,2]